bitfinex/quotes_BTCUSD_20250618
["timestamp","ask_amount","ask_price","bid_price","bid_amount"]
[1750217714953,0.34047311,105310.0,105300.0,0.56590506]
[1750217715627,0.55493746,105310.0,105300.0,0.56590506]
[1750217716584,0.55493746,105310.0,105300.0,0.56566506]
[1750217717015,0.56443251,105310.0,105300.0,0.56566506]
[1750217717233,0.56443251,105310.0,105300.0,0.37070506]
[1750217717446,0.56443242,105310.0,105300.0,0.56566506]
[1750217718087,0.55493746,105310.0,105300.0,0.56566506]
[1750217728919,0.34047311,105310.0,105300.0,0.56566506]
[1750217729584,0.00047311,105310.0,105300.0,0.56566506]
[1750217738830,0.00047311,105310.0,105300.0,0.79378506]
[1750217740079,0.34047311,105310.0,105300.0,0.59882506]
[1750217740294,0.34047311,105310.0,105300.0,0.79362506]
[1750217742911,0.00047311,105310.0,105300.0,0.79362506]
[1750217743157,0.34047311,105310.0,105300.0,0.79362506]
[1750217747057,0.55496717,105310.0,105300.0,0.79362506]
[1750217750796,0.55496717,105310.0,105300.0,0.56550506]
[1750217755235,0.55496717,105310.0,105300.0,0.37070506]
[1750217755438,0.55496717,105310.0,105300.0,0.31866421]
[1750217755682,0.57436717,105310.0,105300.0,0.51346421]
[1750217755896,0.57436717,105310.0,105300.0,0.52800506]
[1750217756740,0.59366717,105310.0,105300.0,0.52800506]
[1750217756945,0.26268902,105310.0,105300.0,0.52800506]
[1750217757154,0.25319406,105310.0,105300.0,0.52800506]
[1750217758017,0.0387,105310.0,105300.0,0.52800506]
[1750217758264,0.23389406,105310.0,105300.0,0.52800506]
[1750217759490,0.23389406,105310.0,105300.0,0.52796506]
[1750217760320,0.60948263,105320.0,105310.0,0.23294256]
[1750217760544,0.82402399,105320.0,105310.0,0.32918432]
[1750217760759,0.83351859,105320.0,105310.0,0.32918432]
[1750217761632,0.82402399,105320.0,105310.0,0.32918432]
[1750217762979,0.83351868,105320.0,105310.0,0.52394432]
[1750217763110,0.83351859,105320.0,105310.0,0.52394432]
[1750217763336,0.84301328,105320.0,105310.0,0.52394432]
[1750217764826,0.83351859,105320.0,105310.0,0.52394432]
[1750217765892,0.82402399,105320.0,105310.0,0.52394432]
[1750217766118,0.83351859,105320.0,105310.0,0.52394432]
[1750217766341,0.8335185,105320.0,105310.0,0.52394432]
[1750217767203,0.84301319,105320.0,105310.0,0.52394432]
[1750217767419,0.8335185,105320.0,105310.0,0.52394432]
[1750217767638,0.8430131,105320.0,105310.0,0.52394432]
[1750217768164,1.04240524,105320.0,105310.0,0.52394432]
[1750217768389,0.85250779,105320.0,105310.0,0.52394432]
[1750217768832,1.25690002,105320.0,105310.0,0.13624176]
[1750217769039,1.23791109,105320.0,105310.0,0.49990851]
[1750217769275,0.59442891,105320.0,105310.0,0.50940401]
[1750217769488,1.02341703,105320.0,105310.0,0.52839474]
[1750217769935,1.02341703,105320.0,105310.0,0.51889942]
[1750217770366,1.02341703,105320.0,105310.0,0.52839474]
[1750217771017,1.22841649,105320.0,105310.0,0.51889942]
[1750217771280,1.22841649,105320.0,105310.0,0.32413942]
[1750217771501,0.99493287,105320.0,105310.0,0.49990851]
[1750217772440,1.20942693,105320.0,105310.0,0.49990851]
[1750217772875,1.20942693,105320.0,105310.0,0.50940401]
[1750217773393,0.99493287,105320.0,105310.0,0.50940401]
[1750217774088,0.99493287,105320.0,105310.0,0.51889942]
[1750217774637,0.99493287,105320.0,105310.0,0.52839474]
[1750217774871,0.99493287,105320.0,105310.0,0.51889942]
[1750217776760,0.99493287,105320.0,105310.0,0.50940401]
[1750217777654,0.99493287,105320.0,105310.0,0.51889942]
[1750217778810,0.82402408,105320.0,105310.0,0.52839465]
[1750217779237,0.83351886,105320.0,105310.0,0.52839411]
[1750217780630,0.83351841,105320.0,105310.0,0.52839411]
[1750217781013,0.36804136,105320.0,105310.0,0.52839411]
[1750217781273,0.76903542,105320.0,105310.0,0.54293496]
[1750217781508,0.77852948,105320.0,105310.0,0.56043496]
[1750217781929,0.78802372,105320.0,105310.0,0.56043496]
[1750217782139,0.78802372,105320.0,105310.0,0.54293496]
[1750217782562,0.80701283,105320.0,105310.0,0.54293496]
[1750217782771,0.80701274,105320.0,105310.0,0.54293496]
[1750217783401,0.79751814,105320.0,105310.0,0.54293496]
[1750217784328,0.78802372,105320.0,105310.0,0.54293496]
[1750217784537,0.79751814,105320.0,105310.0,0.54293496]
[1750217786218,0.80701274,105320.0,105310.0,0.34817496]
[1750217786403,0.81631814,105320.0,105310.0,0.54293496]
[1750217786635,0.82581274,105320.0,105310.0,0.54293496]
[1750217786839,0.81631814,105320.0,105310.0,0.54293496]
[1750217787329,0.81631814,105320.0,105310.0,0.54283496]
[1750217787780,0.79751814,105320.0,105310.0,0.54283496]
[1750217788761,0.80701274,105320.0,105310.0,0.54283496]
[1750217789399,0.79751814,105320.0,105310.0,0.54283496]
[1750217789690,0.80701265,105320.0,105310.0,0.54283496]
[1750217792731,0.79751823,105320.0,105310.0,0.54283496]
[1750217795170,0.78802372,105320.0,105310.0,0.54283496]
[1750217795376,0.79751814,105320.0,105310.0,0.54283496]
[1750217796213,0.80701265,105320.0,105310.0,0.54283496]
[1750217797276,0.80701265,105320.0,105310.0,0.56173496]
[1750217801446,0.81650734,105320.0,105310.0,0.56173496]
[1750217802138,0.79751814,105320.0,105310.0,0.56173496]
[1750217802387,0.78802372,105320.0,105310.0,0.56173496]
[1750217802616,0.79751814,105320.0,105310.0,0.56173496]
[1750217803804,0.78802372,105320.0,105310.0,0.56173496]
[1750217804530,0.76903542,105320.0,105310.0,0.58083496]
[1750217804765,0.3400473,105320.0,105310.0,0.58083496]
[1750217804976,0.76903542,105320.0,105310.0,0.58083496]
[1750217807153,0.55454136,105320.0,105310.0,0.58083496]
[1750217807611,0.3400473,105320.0,105310.0,0.58083496]
[1750217807845,0.55454136,105320.0,105310.0,0.58083496]
[1750217810326,0.3400473,105320.0,105310.0,0.58083496]
[1750217810551,0.55454136,105320.0,105310.0,0.58083496]
[1750217820214,0.3400473,105320.0,105310.0,0.58083496]
[1750217820417,0.55454136,105320.0,105310.0,0.58083496]
[1750217821272,0.76903542,105320.0,105310.0,0.58083496]
[1750217821485,0.55454136,105320.0,105310.0,0.58083496]
[1750217822238,0.3400473,105320.0,105310.0,0.58083496]
[1750217822452,0.55454136,105320.0,105310.0,0.58083496]
[1750217822638,0.76903542,105320.0,105310.0,0.58083496]
[1750217822904,0.55454136,105320.0,105310.0,0.58083496]
[1750217829409,0.55215682,105320.0,105310.0,0.58083496]
[1750217833664,0.33766276,105320.0,105310.0,0.58083496]
[1750217833882,0.55215682,105320.0,105310.0,0.58083496]
[1750217834159,0.21454136,105320.0,105310.0,0.58083496]
[1750217835962,4.73e-05,105320.0,105310.0,0.58083496]
[1750217836198,0.21454136,105320.0,105310.0,0.58083496]
[1750217838452,0.55454136,105320.0,105310.0,0.58083496]
[1750217839686,0.3400473,105320.0,105310.0,0.58083496]
[1750217839912,0.55454136,105320.0,105310.0,0.58083496]
[1750217845775,0.3400473,105320.0,105310.0,0.58083496]
[1750217846005,0.3400473,105320.0,105310.0,0.79532902]
[1750217846987,4.73e-05,105320.0,105310.0,0.58083496]
[1750217847253,4.73e-05,105320.0,105310.0,0.79532902]
[1750217847460,0.3400473,105320.0,105310.0,0.79532902]
[1750217847600,0.3400473,105320.0,105310.0,0.65708716]
[1750217847816,0.3400473,105320.0,105310.0,0.94818716]
[1750217848060,0.3400473,105320.0,105310.0,1.21268122]
[1750217848477,4.73e-05,105320.0,105310.0,1.21268122]
[1750217848680,4.73e-05,105320.0,105310.0,0.99818716]
[1750217848880,4.73e-05,105320.0,105310.0,1.13642902]
[1750217849361,4.73e-05,105320.0,105310.0,1.35092308]
[1750217849572,4.73e-05,105320.0,105310.0,1.13642902]
[1750217850697,4.73e-05,105320.0,105310.0,1.14542902]
[1750217850997,4.73e-05,105320.0,105310.0,0.95066902]
[1750217851200,4.73e-05,105320.0,105310.0,1.14354902]
[1750217851543,4.73e-05,105320.0,105310.0,1.14754902]
[1750217851743,4.73e-05,105320.0,105310.0,0.95166902]
[1750217851896,4.73e-05,105320.0,105310.0,1.14750902]
[1750217852387,4.73e-05,105320.0,105310.0,0.85640902]
[1750217858347,4.73e-05,105320.0,105310.0,1.14750902]
[1750217863634,4.73e-05,105320.0,105310.0,0.93301496]
[1750217863845,4.73e-05,105320.0,105310.0,1.14750902]
[1750217866600,4.73e-05,105320.0,105310.0,1.37558902]
[1750217868616,4.73e-05,105320.0,105310.0,1.59008308]
[1750217869267,4.73e-05,105320.0,105310.0,1.64008308]
[1750217871930,4.73e-05,105320.0,105310.0,1.66860908]
[1750217879508,4.73e-05,105320.0,105310.0,1.23962096]
[1750217879636,4.73e-05,105320.0,105310.0,1.66860908]
[1750217880876,4.73e-05,105320.0,105310.0,1.62868908]
[1750217881079,4.73e-05,105320.0,105310.0,1.16313502]
[1750217883066,4.73e-05,105320.0,105310.0,0.68358096]
[1750217883314,4.73e-05,105320.0,105310.0,0.60014011]
[1750217883609,0.0372473,105320.0,105310.0,0.76761411]
[1750217884062,0.0372473,105320.0,105310.0,0.78215496]
[1750217884291,0.0372473,105320.0,105310.0,0.58615496]
[1750217884531,0.0372473,105320.0,105310.0,0.78215496]
[1750217885225,0.0372473,105320.0,105310.0,0.80064902]
[1750217885461,0.0372473,105320.0,105310.0,0.99664902]
[1750217885695,0.0372473,105320.0,105310.0,0.78215496]
[1750217885947,0.25174136,105320.0,105310.0,0.78215496]
[1750217886617,0.0372473,105320.0,105310.0,0.78215496]
[1750217886831,0.25174136,105320.0,105310.0,0.78215496]
[1750217887843,0.25174136,105320.0,105310.0,0.78223496]
[1750217888283,0.25174136,105320.0,105310.0,0.78199496]
[1750217889530,0.0372473,105320.0,105310.0,0.78199496]
[1750217889794,0.25174136,105320.0,105310.0,0.35807496]
[1750217889996,0.25174136,105320.0,105310.0,0.78195496]
[1750217890633,0.0372473,105320.0,105310.0,0.35207496]
[1750217890848,0.25174136,105320.0,105310.0,0.77995496]
[1750217891622,0.25174136,105320.0,105310.0,0.35207496]
[1750217891805,0.25174136,105320.0,105310.0,0.35507496]
[1750217892006,0.25174136,105320.0,105310.0,0.77891496]
[1750217892277,0.25174136,105320.0,105310.0,0.62355496]
[1750217892480,0.25174136,105320.0,105310.0,0.77891496]
[1750217892869,0.0372473,105320.0,105310.0,0.77891496]
[1750217893079,0.25174136,105320.0,105310.0,0.77891496]
[1750217894164,0.59174136,105320.0,105310.0,0.77891496]
[1750217895499,0.3772473,105320.0,105310.0,0.77891496]
[1750217895717,0.3772473,105320.0,105310.0,0.58315496]
[1750217895938,0.59174136,105320.0,105310.0,0.77891496]
[1750217896161,0.61072975,105320.0,105310.0,0.35507496]
[1750217896385,0.82522363,105320.0,105310.0,0.52675888]
[1750217896594,0.80623542,105320.0,105310.0,0.52675888]
[1750217897231,0.80623542,105320.0,105310.0,0.52275888]
[1750217897642,0.81572957,105320.0,105310.0,0.52175888]
[1750217897831,0.81572966,105320.0,105310.0,0.52175888]
[1750217897964,0.81572957,105320.0,105310.0,0.52375888]
[1750217898192,0.80623542,105320.0,105310.0,0.52375888]
[1750217898635,0.81572966,105320.0,105310.0,0.52375888]
[1750217898871,0.81572948,105320.0,105310.0,0.52375888]
[1750217899692,0.82522372,105320.0,105310.0,0.52371888]
[1750217899888,0.81572948,105320.0,105310.0,0.52371888]
[1750217900189,0.82522372,105320.0,105310.0,0.52371888]
[1750217900381,0.83471814,105320.0,105310.0,0.52371888]
[1750217900588,0.82522372,105320.0,105310.0,0.52371888]
[1750217900764,0.80623542,105320.0,105310.0,0.52371888]
[1750217901410,0.81572957,105320.0,105310.0,0.52371888]
[1750217902068,0.81572948,105320.0,105310.0,0.52371888]
[1750217902475,0.82522372,105320.0,105310.0,0.52371888]
[1750217902927,0.83471805,105320.0,105310.0,0.52371888]
[1750217903129,0.82522372,105320.0,105310.0,0.52371888]
[1750217903331,0.83471814,105320.0,105310.0,0.52371888]
[1750217903505,0.84421256,105320.0,105310.0,0.52371888]
[1750217903728,0.40572993,105320.0,105310.0,0.52371888]
[1750217903934,0.82522372,105320.0,105310.0,0.52371888]
[1750217904370,0.83471823,105320.0,105310.0,0.52371888]
[1750217904807,0.83471814,105320.0,105310.0,0.52371888]
[1750217905009,0.84421274,105320.0,105310.0,0.52371888]
[1750217905428,0.84421265,105320.0,105310.0,0.52371888]
[1750217905816,0.83471814,105320.0,105310.0,0.52371888]
[1750217906227,0.84421274,105320.0,105310.0,0.52371888]
[1750217906440,0.84421265,105320.0,105310.0,0.52371888]
[1750217906879,0.83471814,105320.0,105310.0,0.52371888]
[1750217908131,0.83471814,105320.0,105310.0,0.36843888]
[1750217908340,0.84421265,105320.0,105310.0,0.52379888]
[1750217908769,0.84421265,105320.0,105310.0,0.32803888]
[1750217908978,0.84421265,105320.0,105310.0,0.52379888]
[1750217908979,0.85370734,105320.0,105310.0,0.52379888]
[1750217909812,0.85370734,105320.0,105310.0,0.32803888]
[1750217910021,1.03411073,105320.0,105310.0,0.52375906]
[1750217910231,0.85370806,105320.0,105310.0,0.53325429]
[1750217910441,0.85370806,105320.0,105310.0,0.53325384]
[1750217910653,0.83471859,105320.0,105310.0,0.53325384]
[1750217910853,0.82522408,105320.0,105310.0,0.53325384]
[1750217911063,0.83471868,105320.0,105310.0,0.53329384]
[1750217911683,0.82522408,105320.0,105310.0,0.53329384]
[1750217911892,0.83471877,105320.0,105310.0,0.53329384]
[1750217912102,0.83471877,105320.0,105310.0,0.49289384]
[1750217912321,0.84421355,105320.0,105310.0,0.49289384]
[1750217912542,1.02461676,105320.0,105310.0,0.51430347]
[1750217912760,1.02461676,105320.0,105310.0,0.30904815]
[1750217912979,1.02461676,105320.0,105310.0,0.51426347]
[1750217913196,0.83471931,105320.0,105310.0,0.5237587]
[1750217913633,1.23911082,105320.0,105310.0,0.10963753]
[1750217913879,1.2296164,105320.0,105310.0,0.49531301]
[1750217914110,1.2296164,105320.0,105310.0,0.30529744]
[1750217914329,1.2296164,105320.0,105310.0,0.49521292]
[1750217914538,1.2296164,105320.0,105310.0,0.50270851]
[1750217914754,1.2296164,105320.0,105310.0,0.50260851]
[1750217914971,1.2296164,105320.0,105310.0,0.51010401]
[1750217915654,1.2296164,105320.0,105310.0,0.51959942]
[1750217915864,1.2296164,105320.0,105310.0,0.51949942]
[1750217916086,1.01512234,105320.0,105310.0,0.52899474]
[1750217916505,1.01512234,105320.0,105310.0,0.52899429]
[1750217916714,0.82522489,105320.0,105310.0,0.52899429]
[1750217916932,0.83471976,105320.0,105310.0,0.52899429]
[1750217917145,0.81573002,105320.0,105310.0,0.52899384]
[1750217917359,0.83471904,105320.0,105310.0,0.52889384]
[1750217918227,0.85370797,105320.0,105310.0,0.52879384]
[1750217918619,0.84421319,105320.0,105310.0,0.52879384]
[1750217919171,0.8347185,105320.0,105310.0,0.52879384]
[1750217919808,0.84421319,105320.0,105310.0,0.52879384]
[1750217922050,0.85370797,105320.0,105310.0,0.52879384]
[1750217922558,1.04360614,105320.0,105310.0,0.5192987]
[1750217922768,1.03411181,105320.0,105310.0,0.5192987]
[1750217923403,1.03411181,105320.0,105310.0,0.50980347]
[1750217923610,1.23911127,105320.0,105310.0,0.34494851]
[1750217923824,1.22961658,105320.0,105310.0,0.50022851]
[1750217924029,1.01512252,105320.0,105310.0,0.50972383]
[1750217924472,1.01512252,105320.0,105310.0,0.51921906]
[1750217924675,1.01512252,105320.0,105310.0,0.49073301]
[1750217924882,1.01512252,105320.0,105310.0,0.50972428]
[1750217925303,1.22961658,105320.0,105310.0,0.50972428]
[1750217926404,1.2201218,105320.0,105310.0,0.50972428]
[1750217927461,0.3685419,105320.0,105310.0,0.50972428]
[1750217927668,0.38753092,105320.0,105310.0,0.52871483]
[1750217927877,0.81651904,105320.0,105310.0,0.52871483]
[1750217928302,0.80702435,105320.0,105310.0,0.52871483]
[1750217928518,0.78802435,105320.0,105310.0,0.52871483]
[1750217928722,0.79751904,105320.0,105310.0,0.52871483]
[1750217931042,0.36853092,105320.0,105310.0,0.52871483]
[1750217931242,0.79751904,105320.0,105310.0,0.52871483]
[1750217932545,0.80701382,105320.0,105310.0,0.52871483]
[1750217932798,0.82591382,105320.0,105310.0,0.52871492]
[1750217933457,0.83540869,105320.0,105310.0,0.52863429]
[1750217933843,0.40642057,105320.0,105310.0,0.50964383]
[1750217934092,0.83540869,105320.0,105310.0,0.50964383]
[1750217934315,0.83540869,105320.0,105310.0,0.50014851]
[1750217934531,0.83540869,105320.0,105310.0,0.51913942]
[1750217934948,1.01581181,105320.0,105310.0,0.50964401]
[1750217936900,1.00631721,105320.0,105310.0,0.50964401]
[1750217938244,0.57732909,105320.0,105310.0,0.50964401]
[1750217938447,0.98741721,105320.0,105310.0,0.50964401]
[1750217939281,0.98741721,105320.0,105310.0,0.31404401]
[1750217939502,0.98741721,105320.0,105310.0,0.50952401]
[1750217941348,0.98741721,105320.0,105310.0,0.51901933]
[1750217941568,0.77852993,105320.0,105310.0,0.54651447]
[1750217941782,0.78802462,105320.0,105310.0,0.56501447]
[1750217942021,0.58302435,105320.0,105310.0,0.56501447]
[1750217942273,0.78802381,105320.0,105310.0,0.56501447]
[1750217942738,0.79751823,105320.0,105310.0,0.56501447]
[1750217942971,0.80701283,105320.0,105310.0,0.56501447]
[1750217944179,0.79751823,105320.0,105310.0,0.56501447]
[1750217944411,0.55454136,105320.0,105310.0,0.56501447]
[1750217944654,0.56403542,105320.0,105310.0,0.56501447]
[1750217945258,0.23348236,105320.0,105310.0,0.56501447]
[1750217945482,0.22398812,105320.0,105310.0,0.56501447]
[1750217945962,0.23348236,105320.0,105310.0,0.56701447]
[1750217946220,0.22398812,105320.0,105310.0,0.56701447]
[1750217946713,0.23348227,105320.0,105310.0,0.56701447]
[1750217946933,0.23348227,105320.0,105310.0,0.56901447]
[1750217947161,0.56398812,105320.0,105310.0,0.56901447]
[1750217947599,0.57348236,105320.0,105310.0,0.56901447]
[1750217947828,0.56398812,105320.0,105310.0,0.56901447]
[1750217948112,0.57348236,105320.0,105310.0,0.56901447]
[1750217948355,0.79747093,105320.0,105310.0,0.37353447]
[1750217948585,0.79747093,105320.0,105310.0,0.56885447]
[1750217948816,0.78797651,105320.0,105310.0,0.56885447]
[1750217949046,0.79747102,105320.0,105310.0,0.56885447]
[1750217949293,0.79747102,105320.0,105310.0,0.56875447]
[1750217949953,0.80696571,105320.0,105310.0,0.37333447]
[1750217950212,0.79747102,105320.0,105310.0,0.56861447]
[1750217951492,0.80696571,105320.0,105310.0,0.56861447]
[1750217951704,0.79747102,105320.0,105310.0,0.56861447]
[1750217952360,0.80696571,105320.0,105310.0,0.55011447]
[1750217952709,0.79747102,105320.0,105310.0,0.55011447]
[1750217953530,0.79747102,105320.0,105310.0,0.56821447]
[1750217956184,0.78797651,105320.0,105310.0,0.56821447]
[1750217956595,0.79747102,105320.0,105310.0,0.56821447]
[1750217959181,0.80696571,105320.0,105310.0,0.56821447]
[1750217959824,0.79747102,105320.0,105310.0,0.56821447]
[1750217960031,0.79747102,105320.0,105310.0,0.55011447]
[1750217960435,0.78797651,105320.0,105310.0,0.56891447]
[1750217960640,0.78797642,105320.0,105310.0,0.56891447]
[1750217961104,0.79747084,105320.0,105310.0,0.56891447]
[1750217961441,0.80696544,105320.0,105310.0,0.56891447]
[1750217962454,0.79747084,105320.0,105310.0,0.56891447]
[1750217963351,0.79747084,105320.0,105310.0,0.51891447]
[1750217963502,0.78797642,105320.0,105310.0,0.51891447]
[1750217963825,0.79747084,105320.0,105310.0,0.51891447]
[1750217964044,0.77848218,105320.0,105310.0,0.51891447]
[1750217964239,0.34,105320.0,105310.0,0.51891447]
[1750217964467,0.76898812,105320.0,105310.0,0.51891447]
[1750217965227,0.77848227,105320.0,105310.0,0.51891447]
[1750217965429,0.77848227,105320.0,105310.0,0.50011447]
[1750217966063,0.76898812,105320.0,105310.0,0.49991447]
[1750217966545,0.77848227,105320.0,105310.0,0.49991447]
[1750217967631,0.76898812,105320.0,105310.0,0.49991447]
[1750217968058,0.76898812,105320.0,105310.0,0.51721447]
[1750217972877,0.77848227,105320.0,105310.0,0.49991447]
[1750217974015,0.76898812,105320.0,105310.0,0.49991447]
[1750217974964,0.76898812,105320.0,105310.0,0.51771447]
[1750217975660,0.77848218,105320.0,105310.0,0.51771447]
[1750217978190,0.77848218,105320.0,105310.0,0.49991447]
[1750217978489,0.79747084,105320.0,105310.0,0.32699447]
[1750217978724,0.81617084,105320.0,105310.0,0.48179447]
[1750217978973,0.80667642,105320.0,105310.0,0.48179447]
[1750217979661,0.81617093,105320.0,105310.0,0.48179447]
[1750217980350,0.80667642,105320.0,105310.0,0.48179447]
[1750217980599,0.81617084,105320.0,105310.0,0.48179447]
[1750217981907,0.79747084,105320.0,105310.0,0.48179447]
[1750217982419,0.80696544,105320.0,105310.0,0.48179447]
[1750217982854,0.80696535,105320.0,105310.0,0.48179447]
[1750217983123,0.81646004,105320.0,105310.0,0.48179447]
[1750217983357,0.80696535,105320.0,105310.0,0.48179447]
[1750217983584,0.79747084,105320.0,105310.0,0.32699447]
[1750217983824,0.80696553,105320.0,105310.0,0.48183447]
[1750217984090,0.79747084,105320.0,105310.0,0.48183447]
[1750217984334,0.80696544,105320.0,105310.0,0.48183447]
[1750217984544,0.79747084,105320.0,105310.0,0.48183447]
[1750217984979,0.78797642,105320.0,105310.0,0.48183447]
[1750217985185,0.79747093,105320.0,105310.0,0.50033447]
[1750217985392,0.79747075,105320.0,105310.0,0.50033447]
[1750217985796,0.78797642,105320.0,105310.0,0.50033447]
[1750217986008,0.79747075,105320.0,105310.0,0.50033447]
[1750217986259,0.78797642,105320.0,105310.0,0.50033447]
[1750217986691,0.79747084,105320.0,105310.0,0.50033447]
[1750217990410,0.37797705,105320.0,105310.0,0.50033447]
[1750217990631,0.79747075,105320.0,105310.0,0.50033447]
[1750217994356,0.78797642,105320.0,105310.0,0.50033447]
[1750217994538,0.78797642,105320.0,105310.0,0.30533447]
[1750217994763,0.79747084,105320.0,105310.0,0.50013447]
[1750217995366,0.80696544,105320.0,105310.0,0.50013447]
[1750217995569,0.80696535,105320.0,105310.0,0.50013447]
[1750217996426,0.98736829,105320.0,105310.0,0.47164851]
[1750217996634,0.82606553,105320.0,105310.0,0.47213906]
[1750217997072,0.83556031,105320.0,105310.0,0.47213906]
[1750217997253,0.83556031,105320.0,105310.0,0.27733906]
[1750217997452,0.83556031,105320.0,105310.0,0.47213906]
[1750217997660,0.82606553,105320.0,105310.0,0.47213906]
[1750217997862,0.80696553,105320.0,105310.0,0.47213906]
[1750217999602,0.82576553,105320.0,105310.0,0.47213906]
[1750218000217,0.80696553,105320.0,105310.0,0.47213906]
[1750218001048,0.83526031,105320.0,105310.0,0.47213906]
[1750218001255,0.83526112,105320.0,105310.0,0.47213906]
[1750218001743,0.82576625,105320.0,105310.0,0.47213906]
[1750218001939,0.82576625,105320.0,105310.0,0.27733906]
[1750218002187,1.0156637,105320.0,105310.0,0.46264392]
[1750218002395,1.0156637,105320.0,105310.0,0.47213915]
[1750218003258,0.82576625,105320.0,105310.0,0.48163429]
[1750218004508,0.83526112,105320.0,105310.0,0.48163429]
[1750218004712,0.83526112,105320.0,105310.0,0.28683429]
[1750218004914,1.01566433,105320.0,105310.0,0.47213915]
[1750218008976,0.36848389,105320.0,105310.0,0.48163429]
[1750218009239,0.79747201,105320.0,105310.0,0.46264392]
[1750218010086,0.79747201,105320.0,105310.0,0.46264401]
[1750218010243,0.98736946,105320.0,105310.0,0.46264401]
[1750218011099,0.97787504,105320.0,105310.0,0.45314851]
[1750218013091,0.96838035,105320.0,105310.0,0.44365292]
[1750218015266,0.97748557,105320.0,105310.0,0.24424176]
[1750218015539,0.99698557,105320.0,105310.0,0.24424176]
[1750218016240,0.99698557,105320.0,105310.0,0.24224176]
[1750218016646,0.99698557,105320.0,105310.0,0.24024176]
[1750218017881,0.97748557,105320.0,105310.0,0.43965301]
[1750218018091,0.97748557,105320.0,105310.0,0.44914869]
[1750218020436,0.97748557,105320.0,105310.0,0.45864428]
[1750218020909,0.95888557,105320.0,105310.0,0.45864428]
[1750218026315,0.95888557,105320.0,105310.0,0.46813978]
[1750218027887,0.96838026,105320.0,105310.0,0.49603519]
[1750218028096,0.7974721,105320.0,105310.0,0.48653942]
[1750218028331,0.7974721,105320.0,105310.0,0.49603474]
[1750218028767,0.98736955,105320.0,105310.0,0.49603474]
[1750218028985,0.98736955,105320.0,105310.0,0.46754851]
[1750218029191,0.97787513,105320.0,105310.0,0.45805292]
[1750218029378,0.97787513,105320.0,105310.0,0.46754851]
[1750218029797,0.97787513,105320.0,105310.0,0.47704401]
[1750218030857,0.97787513,105320.0,105310.0,0.48653942]
[1750218031063,0.97787513,105320.0,105310.0,0.50483942]
[1750218032426,0.57348245,105320.0,105310.0,0.51433456]
[1750218032640,0.57348236,105320.0,105310.0,0.51433456]
[1750218033490,1.00635758,105320.0,105310.0,0.50479942]
[1750218033692,0.99686352,105320.0,105310.0,0.48649942]
[1750218033805,0.99686352,105320.0,105310.0,0.49599474]
[1750218034011,0.98736928,105320.0,105310.0,0.49599474]
[1750218035441,0.97787486,105320.0,105310.0,0.48649942]
[1750218036455,0.97787486,105320.0,105310.0,0.28224401]
[1750218036661,0.97787486,105320.0,105310.0,0.47700401]
[1750218037714,0.96838035,105320.0,105310.0,0.47700401]
[1750218039235,0.95888557,105320.0,105310.0,0.46750851]
[1750218040956,0.95888557,105320.0,105310.0,0.47700401]
[1750218042307,0.95888557,105320.0,105310.0,0.46750851]
[1750218042507,0.95888557,105320.0,105310.0,0.45801292]
[1750218043342,0.95888557,105320.0,105310.0,0.46750851]
[1750218044818,0.95888557,105320.0,105310.0,0.25860176]
[1750218045012,0.95888557,105320.0,105310.0,0.26809753]
[1750218049076,0.95888557,105320.0,105310.0,0.24012176]
[1750218050025,0.95888557,105320.0,105310.0,0.08540176]
[1750218050170,0.95888557,105320.0,105310.0,0.24012176]
[1750218052620,0.52989745,105320.0,105310.0,0.24012176]
[1750218052833,0.95888557,105320.0,105310.0,0.24961753]
[1750218054464,0.52989745,105320.0,105310.0,0.24961753]
[1750218054675,0.95888557,105320.0,105310.0,0.24961753]
[1750218058180,0.95888557,105320.0,105310.0,0.24012176]
[1750218058518,0.95888557,105320.0,105310.0,0.24961753]
[1750218062090,0.95888557,105320.0,105310.0,0.26901753]
[1750218062301,0.95888557,105320.0,105310.0,0.46842869]
[1750218062560,0.95888557,105320.0,105310.0,0.47792419]
[1750218063068,0.96838044,105320.0,105310.0,0.47792419]
[1750218063276,0.79747183,105320.0,105310.0,0.50691942]
[1750218063481,0.55838116,105320.0,105310.0,0.49742419]
[1750218063695,0.98736928,105320.0,105310.0,0.50691951]
[1750218063899,0.55838116,105320.0,105310.0,0.50691951]
[1750218064114,0.98736928,105320.0,105310.0,0.49742419]
[1750218064317,0.97787495,105320.0,105310.0,0.49742419]
[1750218065376,0.97787495,105320.0,105310.0,0.50691951]
[1750218065589,0.54888683,105320.0,105310.0,0.5069196]
[1750218065800,0.97787495,105320.0,105310.0,0.51641492]
[1750218068514,0.97787495,105320.0,105310.0,0.5069196]
[1750218071166,0.96838035,105320.0,105310.0,0.34270419]
[1750218071418,0.96838035,105320.0,105310.0,0.49738419]
[1750218072043,0.96838035,105320.0,105310.0,0.5068796]
[1750218072260,0.53939223,105320.0,105310.0,0.51637483]
[1750218072468,0.96838035,105320.0,105310.0,0.5068796]
[1750218073007,0.96838035,105320.0,105310.0,0.49738419]
[1750218074202,0.96838035,105320.0,105310.0,0.5068796]
[1750218074456,0.62838035,105320.0,105310.0,0.5068796]
[1750218075702,0.62838035,105320.0,105310.0,0.51637492]
[1750218077022,0.96838035,105320.0,105310.0,0.51637438]
[1750218080023,0.96838035,105320.0,105310.0,0.50687915]
[1750218081689,0.96838035,105320.0,105310.0,0.47788383]
[1750218081952,0.96838035,105320.0,105310.0,0.48737915]
[1750218082542,0.96838035,105320.0,105310.0,0.49687438]
[1750218083167,0.96838035,105320.0,105310.0,0.51527438]
[1750218083367,0.97787486,105320.0,105310.0,0.51527438]
[1750218084045,0.78797741,105320.0,105310.0,0.51527438]
[1750218084250,0.78797741,105320.0,105310.0,0.51527384]
[1750218084994,0.97787486,105320.0,105310.0,0.48678851]
[1750218085345,0.97787486,105320.0,105310.0,0.46838851]
[1750218085555,0.97787486,105320.0,105310.0,0.47788392]
[1750218086134,0.97787486,105320.0,105310.0,0.29273924]
[1750218086339,0.97787486,105320.0,105310.0,0.48729924]
[1750218087190,0.98736973,105320.0,105310.0,0.48729924]
[1750218087928,0.98736973,105320.0,105310.0,0.47780392]
[1750218090440,0.98736973,105320.0,105310.0,0.48729924]
[1750218090640,0.36848416,105320.0,105310.0,0.49679438]
[1750218090851,0.79747228,105320.0,105310.0,0.49679438]
[1750218092771,0.36848416,105320.0,105310.0,0.49679438]
[1750218093010,0.79747228,105320.0,105310.0,0.49679438]
[1750218093501,0.78797741,105320.0,105310.0,0.49679438]
[1750218093742,0.78797687,105320.0,105310.0,0.51429438]
[1750218093992,0.79747156,105320.0,105310.0,0.51429438]
[1750218094217,0.78797687,105320.0,105310.0,0.51429438]
[1750218094449,0.79747147,105320.0,105310.0,0.51429438]
[1750218094683,0.79747129,105320.0,105310.0,0.51429438]
[1750218095356,0.34949424,105320.0,105310.0,0.51429438]
[1750218095574,0.34949415,105320.0,105310.0,0.51429438]
[1750218095797,0.56398821,105320.0,105310.0,0.51429438]
[1750218096226,0.069502,105330.0,105310.0,0.51429438]
[1750218096497,0.39045579,105330.0,105320.0,0.25388098]
[1750218096925,0.39995048,105330.0,105320.0,0.35012274]
[1750218097539,0.61444454,105330.0,105320.0,0.35012274]
[1750218098880,0.58596245,105330.0,105320.0,0.35012274]
[1750218099079,0.59545615,105330.0,105320.0,0.35012274]